bitfinex/quotes_SOLUSD_20251124
["timestamp","ask_amount","ask_price","bid_price","bid_amount"]
[1763950247324,0.7,133.7,133.64,5.98816694]
[1763950247619,0.1,133.71,133.69,5.98816694]
[1763950247796,0.8,133.71,133.7,9.40816694]
[1763950248219,0.8,133.71,133.7,3.42]
[1763950248629,0.8,133.71,133.7,2.7]
[1763950248810,0.8,133.71,133.67,9.40816694]
[1763950249004,0.8,133.71,133.68,5.98816694]
[1763950249920,0.8,133.71,133.67,3.42]
[1763950250096,0.8,133.71,133.67,9.40816694]
[1763950251129,0.8,133.71,133.68,5.98816694]
[1763950251323,0.8,133.71,133.67,9.40816694]
[1763950252298,0.8,133.71,133.68,5.98816694]
[1763950253377,0.13517705,133.69,133.67,9.40816694]
[1763950253654,0.13517705,133.69,133.67,3.42]
[1763950253844,0.7,133.68,133.67,3.42]
[1763950254158,0.7,133.68,133.66,5.98816694]
[1763950254753,0.7,133.68,133.64,4.16827895]
[1763950255122,0.7,133.68,133.64,9.40816694]
[1763950255343,0.7,133.68,133.65,5.98816694]
[1763950255661,0.7,133.68,133.66,5.98816694]
[1763950255841,0.13517705,133.69,133.67,5.98816694]
[1763950256023,0.83517705,133.69,133.67,5.98816694]
[1763950256452,0.13517705,133.69,133.68,5.98816694]
[1763950257025,0.83517705,133.69,133.67,5.98816694]
[1763950257624,0.83517705,133.69,133.64,10.90274096]
[1763950257845,0.83517705,133.69,133.66,5.98816694]
[1763950258049,0.83517705,133.69,133.64,3.42]
[1763950258235,0.83517705,133.69,133.65,5.98816694]
[1763950258550,0.83517705,133.69,133.64,9.40816694]
[1763950258727,6.82334399,133.69,133.64,3.42]
[1763950259063,6.82334399,133.69,133.64,9.40816694]
[1763950259224,0.7,133.68,133.64,9.40816694]
[1763950259422,0.13517705,133.69,133.67,5.98816694]
[1763950259644,0.83517705,133.69,133.68,6.73622199]
[1763950259943,0.13517705,133.69,133.68,5.98816694]
[1763950260333,0.13517705,133.69,133.68,17.5787175]
[1763950260653,0.13517705,133.69,133.68,10.09816694]
[1763950260849,0.15405801,133.72,133.7,68.12096]
[1763950261025,0.1641815,133.73,133.71,1.06788721]
[1763950261349,0.1641815,133.73,133.72,3.42]
[1763950261726,0.1641815,133.73,133.72,10.89831289]
[1763950261939,0.1641815,133.73,133.72,16.88647983]
[1763950262322,0.1641815,133.73,133.72,9.40816694]
[1763950262523,0.1641815,133.73,133.72,16.88647983]
[1763950264435,0.8641815,133.73,133.72,3.42]
[1763950264653,0.8641815,133.73,133.72,9.40816694]
[1763950265029,0.1641815,133.73,133.72,9.40816694]
[1763950265642,0.1641815,133.73,133.72,17.20647983]
[1763950265846,0.1641815,133.73,133.72,17.95431111]
[1763950266527,0.1641815,133.73,133.72,4.16783128]
[1763950266731,0.8641815,133.73,133.72,3.42]
[1763950266930,0.8641815,133.73,133.69,5.98816694]
[1763950267141,5.98816694,133.71,133.63,0.74833495]
[1763950267343,5.98816694,133.7,133.64,3.42]
[1763950267644,5.98816694,133.7,133.65,5.98816694]
[1763950267960,0.7,133.69,133.65,5.98816694]
[1763950268160,0.1641815,133.73,133.67,5.98816694]
[1763950268368,0.7,133.72,133.69,5.98816694]
[1763950268533,0.1641815,133.73,133.71,5.98816694]
[1763950268734,0.1641815,133.73,133.72,9.40816694]
[1763950268959,0.1641815,133.73,133.72,3.42]
[1763950269163,0.8641815,133.73,133.72,3.42]
[1763950269346,0.1641815,133.73,133.72,9.40816694]
[1763950269748,0.8641815,133.73,133.72,9.40816694]
[1763950269932,0.1641815,133.73,133.72,9.40816694]
[1763950270358,0.1641815,133.73,133.72,17.63431111]
[1763950270561,0.1641815,133.73,133.72,17.95431111]
[1763950270872,0.1641815,133.73,133.72,10.15599822]
[1763950271036,0.1641815,133.73,133.72,10.47599822]
[1763950271354,0.1641815,133.73,133.72,17.95431111]
[1763950271654,0.1641815,133.73,133.72,17.63431111]
[1763950271869,0.1641815,133.73,133.72,10.15599822]
[1763950272444,0.1641815,133.73,133.72,9.40816694]
[1763950273065,0.14759171,133.74,133.72,17.20647983]
[1763950273266,0.15344252,133.74,133.73,57.0559423]
[1763950273568,0.30980642,133.75,133.73,57.0559423]
[1763950273774,0.30980642,133.75,133.73,7.0559423]
[1763950273775,0.14759665,133.75,133.73,7.0559423]
[1763950273940,0.14759665,133.75,133.74,5.98816694]
[1763950274137,0.15872997,133.77,133.74,13.78536149]
[1763950274368,0.15872997,133.77,133.76,5.98816694]
[1763950274544,0.15872997,133.77,133.75,4.16766355]
[1763950274745,0.15872997,133.77,133.76,6.30816694]
[1763950274935,0.15872997,133.77,133.76,56.30816694]
[1763950275132,0.15872997,133.77,133.76,5.98816694]
[1763950276148,0.15872997,133.77,133.76,13.46424349]
[1763950276358,0.15872997,133.77,133.76,5.98816694]
[1763950276761,0.85872997,133.77,133.76,5.98816694]
[1763950276946,0.15872997,133.77,133.76,5.98816694]
[1763950277250,0.15872997,133.77,133.76,13.46424349]
[1763950277565,0.15872997,133.77,133.76,5.98816694]
[1763950279135,0.15872997,133.77,133.75,4.16766355]
[1763950279450,0.85872997,133.77,133.76,5.98816694]
[1763950279638,0.15872997,133.77,133.76,5.98816694]
[1763950280440,0.15872997,133.77,133.76,13.46424349]
[1763950280964,0.15872997,133.77,133.75,4.16766355]
[1763950281151,0.15872997,133.77,133.76,5.98816694]
[1763950281460,0.15872997,133.77,133.75,4.16766355]
[1763950281461,0.85872997,133.77,133.75,3.42]
[1763950281669,0.85872997,133.77,133.76,5.98816694]
[1763950281852,0.85872997,133.77,133.7,7.47943156]
[1763950282044,0.85872997,133.77,133.73,5.98816694]
[1763950282245,0.85872997,133.77,133.71,3.42]
[1763950282448,0.85872997,133.77,133.73,5.98816694]
[1763950283171,6.84689691,133.77,133.71,9.40816694]
[1763950283669,6.68816694,133.76,133.71,3.42]
[1763950283853,5.98816694,133.75,133.71,3.42]
[1763950284049,6.68816694,133.75,133.69,5.98816694]
[1763950284269,6.68816694,133.75,133.66,5.98816694]
[1763950284270,5.98816694,133.72,133.66,5.98816694]
[1763950284464,5.98816694,133.69,133.6,7.48487521]
[1763950284660,18.12096,133.72,133.59,17.98]
[1763950284661,5.98816694,133.67,133.59,3.42]
[1763950284962,0.7,133.66,133.64,5.98816694]
[1763950285156,0.7,133.66,133.63,5.98816694]
[1763950286160,0.7,133.66,133.64,5.98816694]
[1763950286367,1.99999999,133.76,133.65,5.98816694]
[1763950286576,0.7,133.68,133.66,5.98816694]
[1763950286866,0.7,133.68,133.63,3.42]
[1763950287167,0.7,133.68,133.64,5.98816694]
[1763950288057,0.7,133.68,133.65,5.98816694]
[1763950288955,6.68816694,133.68,133.63,3.42]
[1763950289157,5.98816694,133.67,133.63,3.42]
[1763950289352,0.7,133.67,133.63,5.98816694]
[1763950289554,0.7,133.66,133.65,5.98816694]
[1763950289768,0.7,133.7,133.65,5.98816694]
[1763950289957,5.98816694,133.72,133.67,5.98816694]
[1763950290150,0.7,133.71,133.63,3.42]
[1763950290359,0.7,133.71,133.66,5.98816694]
[1763950290360,6.68816694,133.71,133.66,5.98816694]
[1763950290672,0.7,133.71,133.67,5.98816694]
[1763950290879,0.7,133.7,133.67,5.98816694]
[1763950291559,0.7,133.7,133.68,5.98816694]
[1763950291770,0.7,133.7,133.67,5.98816694]
[1763950291960,0.7,133.7,133.68,5.98816694]
[1763950292877,0.7,133.7,133.67,5.98816694]
[1763950293474,0.15665779,133.69,133.67,5.98816694]
[1763950293997,0.7,133.68,133.67,5.98816694]
[1763950294288,0.7,133.68,133.65,5.98816694]
[1763950294472,0.7,133.68,133.66,5.98816694]
[1763950294978,0.7,133.68,133.65,5.98816694]
[1763950295795,0.7,133.68,133.63,3.42]
[1763950295996,0.7,133.68,133.66,5.98816694]
[1763950296962,0.7,133.68,133.63,3.42]
[1763950297162,0.7,133.68,133.63,9.40816694]
[1763950297572,0.7,133.68,133.64,5.98816694]
[1763950298258,0.7,133.68,133.63,3.42]
[1763950298455,0.7,133.68,133.63,9.40816694]
[1763950298654,0.7,133.68,133.64,5.98816694]
[1763950299166,0.7,133.68,133.63,9.40816694]
[1763950299368,0.7,133.68,133.63,5.98816694]
[1763950299955,6.68816694,133.68,133.63,5.98816694]
[1763950300374,0.7,133.67,133.59,3.42]
[1763950300780,0.7,133.67,133.62,5.98816694]
[1763950301081,0.7,133.67,133.63,5.98816694]
[1763950301589,0.7,133.67,133.66,5.98816694]
[1763950301756,0.15665779,133.69,133.66,5.98816694]
[1763950301956,0.85665779,133.69,133.67,5.98816694]
[1763950302186,0.85665779,133.69,133.65,5.98816694]
[1763950302374,0.85665779,133.69,133.67,5.98816694]
[1763950302683,0.85665779,133.69,133.67,9.1640006]
[1763950303679,0.85665779,133.69,133.68,9.1640006]
[1763950303880,0.85665779,133.69,133.67,9.1640006]
[1763950306098,0.85665779,133.69,133.66,9.1640006]
[1763950306466,0.85665779,133.69,133.62,10.90377935]
[1763950306657,0.85665779,133.69,133.67,9.1640006]
[1763950307659,0.85665779,133.69,133.64,7.48263342]
[1763950307862,0.85665779,133.69,133.67,9.1640006]
[1763950308983,0.85665779,133.69,133.66,9.1640006]
[1763950309990,0.85665779,133.69,133.65,9.1640006]
[1763950311094,0.85665779,133.69,133.66,9.1640006]
[1763950312167,0.85665779,133.69,133.65,9.1640006]
[1763950313183,0.85665779,133.69,133.62,10.90377008]
[1763950313362,0.13517723,133.66,133.65,9.1640006]
[1763950313565,0.84517723,133.66,133.65,9.1640006]
[1763950313789,0.84517723,133.66,133.64,9.1640006]
[1763950313962,0.13517723,133.66,133.65,9.1640006]
[1763950314667,0.84517723,133.66,133.65,9.1640006]
[1763950314887,0.13517723,133.66,133.62,3.42]
[1763950315062,0.84517723,133.66,133.65,9.1640006]
[1763950315695,0.13517723,133.66,133.65,9.1640006]
[1763950316701,0.10696958,133.68,133.67,18.12096]
[1763950316921,0.15099473,133.69,133.67,31.45307161]
[1763950317190,0.15099473,133.69,133.68,9.1640006]
[1763950317380,0.15099473,133.69,133.68,16.64455116]
[1763950319392,2.15099473,133.69,133.68,16.64455116]
[1763950320371,0.16412804,133.73,133.7,18.12096]
[1763950320677,0.16412804,133.73,133.7,27.2849606]
[1763950320995,0.14071406,133.74,133.72,7.47831289]
[1763950321211,0.1,133.81,133.75,50.0]
[1763950321503,0.1,133.81,133.78,9.1640006]
[1763950321822,0.1,133.81,133.8,9.1640006]
[1763950322095,0.1,133.81,133.8,12.5840006]
[1763950322684,0.81,133.81,133.72,25.59927289]
[1763950322888,0.81,133.81,133.77,9.1640006]
[1763950323090,0.1,133.81,133.8,9.1640006]
[1763950323692,0.81,133.81,133.8,9.1640006]
[1763950324399,0.81,133.81,133.77,12.5840006]
[1763950325091,0.81,133.81,133.77,3.42]
[1763950325295,9.9740006,133.81,133.77,3.42]
[1763950325496,0.81,133.81,133.77,12.5840006]
[1763950325794,0.71,133.8,133.77,12.5840006]
[1763950326375,0.71,133.8,133.77,3.42]
[1763950326894,9.1640006,133.78,133.68,18.70102297]
[1763950327094,0.71,133.8,133.75,9.1640006]
[1763950327290,0.71,133.79,133.77,9.1640006]
[1763950327493,0.71,133.79,133.76,9.1640006]
[1763950327678,9.1640006,133.78,133.73,9.1640006]
[1763950327881,9.1640006,133.78,133.71,3.42]
[1763950328102,0.71,133.77,133.73,9.1640006]
[1763950329090,9.8740006,133.77,133.71,3.42]
[1763950329293,9.8740006,133.77,133.72,9.1640006]
[1763950329486,0.71,133.76,133.72,9.1640006]
[1763950331392,0.71,133.76,133.73,9.1640006]
[1763950331592,0.71,133.76,133.74,9.1640006]
[1763950331836,9.1640006,133.8,133.75,9.1640006]
[1763950332096,0.71,133.79,133.76,9.1640006]
[1763950332403,0.71,133.79,133.75,9.1640006]
[1763950332917,0.71,133.79,133.71,10.89877979]
[1763950333216,0.71,133.79,133.76,9.1640006]
[1763950333528,0.15721673,133.78,133.76,12.5640006]
[1763950333724,0.16095151,133.79,133.78,18.12096]
[1763950334521,0.16095151,133.79,133.78,9.1640006]
[1763950335419,0.16095151,133.79,133.78,16.63895948]
[1763950335717,0.16095151,133.79,133.78,9.1640006]
[1763950336117,0.16095151,133.79,133.78,9.91149648]
[1763950337122,0.16095151,133.79,133.78,9.1640006]
[1763950337318,0.83095151,133.79,133.78,9.1640006]
[1763950337805,0.83095151,133.79,133.76,12.5640006]
[1763950338002,0.83095151,133.79,133.77,9.1640006]
[1763950338205,0.16095151,133.79,133.78,9.1640006]
[1763950338715,0.83095151,133.79,133.78,9.1640006]
[1763950338911,0.83095151,133.79,133.76,3.4]
[1763950339117,0.83095151,133.79,133.76,10.87599183]
[1763950339337,0.83095151,133.79,133.78,9.1640006]
[1763950339824,0.83095151,133.79,133.77,9.1640006]
[1763950341099,0.16095151,133.79,133.77,9.1640006]
[1763950341300,0.83095151,133.79,133.78,9.1640006]
[1763950341525,0.83095151,133.79,133.76,3.4]
[1763950341722,0.83095151,133.79,133.77,9.1640006]
[1763950342037,0.16095151,133.79,133.76,10.87601161]
[1763950342337,0.16095151,133.79,133.78,9.1640006]
[1763950342503,0.16095151,133.79,133.78,9.91149648]
[1763950343034,0.15084668,133.8,133.78,59.91149648]
[1763950343232,0.25614827,133.81,133.8,7.47384155]
[1763950343423,0.25614827,133.81,133.8,20.7852263]
[1763950345213,0.15586719,133.84,133.8,29.9492269]
[1763950345527,0.77,133.93,133.86,18.12096]
[1763950345722,0.77,133.93,133.88,9.1640006]
[1763950346411,0.77,133.93,133.9,68.12096]
[1763950346412,0.1,133.93,133.9,68.12096]
[1763950346739,0.1,133.93,133.92,9.1640006]
[1763950346931,0.67,133.92,133.9,3.4]
[1763950347137,0.1,133.93,133.91,9.1640006]
[1763950347433,0.67,133.98,133.92,9.1640006]
[1763950347638,2388.51050608,134.0,133.97,9.1640006]
[1763950347815,2388.51050608,134.0,133.99,9.1640006]
[1763950348538,2389.18050608,134.0,133.98,3.4]
[1763950348736,2389.18050608,134.0,133.99,9.1640006]
[1763950349319,2389.18050608,134.0,133.98,9.1640006]
[1763950349518,0.67,133.99,133.97,3.4]
[1763950349725,0.67,133.99,133.98,9.1640006]
[1763950350452,2388.51050608,134.0,133.98,9.1640006]
[1763950350619,2389.18050608,134.0,133.99,9.1640006]
[1763950351015,2398.34450668,134.0,133.93,9.1640006]
[1763950351338,0.67,133.99,133.94,9.1640006]
[1763950352233,0.67,133.99,133.91,3.4]
[1763950352539,0.67,133.99,133.93,9.1640006]
[1763950352840,0.67,133.99,133.94,9.1640006]
[1763950353052,0.67,133.99,133.91,10.86752922]
[1763950353250,9.8340006,133.99,133.93,9.1640006]
[1763950353443,0.15561319,133.95,133.93,9.1640006]
[1763950353816,0.67,133.94,133.92,9.1640006]
[1763950354054,0.82561319,133.95,133.93,9.1640006]
[1763950354249,0.82561319,133.95,133.94,9.1640006]
[1763950354616,0.15561319,133.95,133.92,0.74671445]
[1763950354836,0.82561319,133.95,133.94,9.1640006]
[1763950355246,0.82561319,133.95,133.92,9.1640006]
[1763950355438,0.82561319,133.95,133.92,16.63095724]
[1763950355754,0.82561319,133.95,133.91,3.4]
[1763950355959,0.82561319,133.95,133.92,9.1640006]
[1763950356415,0.82561319,133.95,133.91,3.4]
[1763950356922,9.1640006,133.94,133.91,3.4]
[1763950357114,0.67,133.93,133.91,3.4]
[1763950358348,9.8340006,133.93,133.87,3.4]
[1763950358656,9.1640006,133.94,133.87,12.5640006]
[1763950359826,2.16232509,133.98,133.88,9.1640006]
[1763950360028,9.1640006,133.95,133.88,9.1640006]
[1763950360628,0.67,133.94,133.88,9.1640006]
[1763950361031,9.8340006,133.94,133.87,12.5640006]
[1763950361251,0.67,133.93,133.87,12.5640006]
[1763950362433,9.8340006,133.93,133.86,3.4]
[1763950362622,9.1640006,133.92,133.86,3.4]
[1763950362956,9.1640006,133.89,133.86,3.4]
[1763950363258,0.67,133.91,133.83,9.1640006]
[1763950363427,18.79096,133.97,133.85,9.1640006]
[1763950363633,9.1640006,133.93,133.86,9.1640006]
[1763950363828,9.1640006,133.91,133.85,3.4]
[1763950364140,9.1640006,133.9,133.82,9.1640006]
[1763950364338,18.12096,133.94,133.82,3.4]
[1763950364339,9.1640006,133.88,133.82,3.4]
[1763950364550,5.96706657,133.88,133.82,9.36706657]
[1763950364751,0.68,133.87,133.82,9.36706657]
[1763950365332,0.68,133.87,133.82,3.4]
[1763950365734,5.96706657,133.84,133.74,0.66]
[1763950365959,0.68,133.87,133.77,5.96706657]
[1763950366147,5.96706657,133.83,133.77,5.96706657]
[1763950366354,5.96706657,133.83,133.76,5.96706657]
[1763950366553,0.72,133.82,133.76,5.46706657]
[1763950366759,0.72,133.82,133.77,5.96706657]
[1763950367061,6.68706657,133.82,133.76,5.96706657]
[1763950367249,6.68706657,133.82,133.75,3.4]
[1763950367451,0.72,133.81,133.75,9.36706657]
[1763950368045,0.72,133.81,133.76,5.96706657]
[1763950368257,0.72,133.81,133.75,10.87656111]
[1763950368258,0.72,133.81,133.77,5.96706657]
[1763950368645,0.72,133.83,133.79,5.96706657]
[1763950368961,0.72,133.83,133.8,5.96706657]
[1763950369151,0.72,133.83,133.79,5.96706657]
[1763950369552,0.72,133.86,133.81,5.96706657]
[1763950369743,0.72,133.86,133.82,5.96706657]
[1763950372863,0.72,133.86,133.81,5.96706657]
[1763950373169,5.96706657,133.85,133.8,3.4]
[1763950373370,0.1510283,133.82,133.8,3.4]
[1763950373764,0.72,133.81,133.8,3.4]
[1763950375670,0.72,133.81,133.76,9.36706657]
[1763950376371,0.72,133.81,133.77,5.96706657]
[1763950377284,0.72,133.81,133.78,5.96706657]
[1763950377459,0.1510283,133.82,133.8,5.96706657]
[1763950377971,0.1510283,133.82,133.77,0.74755176]
[1763950377972,0.72,133.81,133.77,5.96706657]
[1763950378147,0.72,133.81,133.76,3.4]
[1763950378342,6.68706657,133.81,133.76,3.4]
[1763950378773,0.72,133.8,133.76,3.4]
[1763950379782,0.72,133.8,133.76,9.36706657]
[1763950380347,0.72,133.8,133.76,3.4]
[1763950380764,0.72,133.8,133.78,5.96706657]
[1763950380965,0.72,133.8,133.76,10.87604014]
[1763950381161,0.72,133.8,133.77,5.96706657]
[1763950382172,0.72,133.8,133.78,5.96706657]
[1763950382477,0.72,133.8,133.77,5.96706657]
[1763950383579,0.1510283,133.82,133.79,5.96706657]
[1763950383875,0.8710283,133.82,133.79,5.96706657]
[1763950384076,0.1510283,133.82,133.8,5.96706657]
[1763950384267,0.1510283,133.82,133.81,5.96706657]
[1763950384668,0.1510283,133.82,133.81,6.62706657]
[1763950384855,0.1510283,133.82,133.81,5.96706657]
[1763950385181,0.8710283,133.82,133.78,5.96706657]
[1763950385370,6.83809487,133.82,133.77,3.4]
[1763950385777,6.83809487,133.82,133.71,0.74788721]
[1763950385778,6.68706657,133.81,133.74,5.96706657]
[1763950386094,0.1510283,133.82,133.75,0.74766355]
[1763950386382,0.1510283,133.82,133.81,5.96706657]
[1763950386563,0.1510283,133.82,133.81,9.36706657]
[1763950387765,0.8710283,133.82,133.79,5.96706657]
[1763950388164,0.8710283,133.82,133.75,8.88409624]
[1763950388364,0.8710283,133.82,133.78,9.36706657]
[1763950388575,0.8710283,133.82,133.78,3.4]
[1763950389082,0.8710283,133.82,133.79,5.96706657]
[1763950389382,0.8710283,133.82,133.8,5.96706657]
[1763950389682,0.1510283,133.82,133.8,5.96706657]
[1763950389884,0.1510283,133.82,133.81,5.96706657]
[1763950390093,0.1510283,133.82,133.8,5.96706657]
[1763950390279,0.8710283,133.82,133.8,5.96706657]
[1763950390666,0.8710283,133.82,133.79,5.96706657]
[1763950391173,0.1510283,133.82,133.8,5.96706657]
[1763950391376,0.1510283,133.82,133.81,5.96706657]
[1763950391967,0.8710283,133.82,133.8,5.96706657]
[1763950392173,0.1510283,133.82,133.81,5.96706657]
[1763950392978,0.8710283,133.82,133.78,3.4]
[1763950393178,0.8710283,133.82,133.79,5.96706657]
[1763950393365,0.2905501,133.82,133.81,5.96706657]
[1763950393770,0.8595218,133.82,133.79,5.96706657]
[1763950393969,0.8595218,133.82,133.78,9.36706657]
[1763950394475,0.8595218,133.82,133.78,3.4]
[1763950395093,0.8595218,133.82,133.77,5.96706657]
[1763950395094,6.82658837,133.82,133.75,5.96706657]
[1763950395591,0.72,133.81,133.77,5.96706657]
[1763950395798,0.72,133.81,133.76,5.96706657]
[1763950395999,0.72,133.81,133.77,5.96706657]
[1763950396298,0.72,133.81,133.76,0.66]
[1763950396299,0.72,133.81,133.76,5.96706657]
[1763950396484,0.72,133.81,133.75,5.96706657]
[1763950397485,0.72,133.81,133.76,5.96706657]
[1763950398206,0.66,133.81,133.78,5.96706657]
[1763950398595,0.66,133.81,133.79,5.96706657]
[1763950399103,0.66,133.81,133.78,5.96706657]
[1763950399301,0.66,133.81,133.77,5.96706657]
[1763950399497,0.66,133.81,133.78,5.96706657]
[1763950400003,0.66,133.81,133.79,5.96706657]
[1763950401098,0.66,133.81,133.74,4.14771945]
[1763950401305,5.96706657,133.8,133.71,0.66]
[1763950401488,5.96706657,133.8,133.73,5.96706657]
[1763950401690,18.2604818,133.82,133.74,5.96706657]
[1763950401691,0.66,133.79,133.74,5.96706657]
[1763950402484,0.66,133.79,133.72,3.4]
[1763950402688,0.66,133.79,133.74,5.96706657]
[1763950402883,5.96706657,133.8,133.74,5.96706657]
[1763950403085,5.96706657,133.8,133.73,5.96706657]
[1763950403683,5.96706657,133.8,133.74,5.96706657]
[1763950404105,5.96706657,133.8,133.73,5.96706657]
[1763950404479,5.96706657,133.79,133.72,9.36706657]
[1763950404706,5.96706657,133.78,133.72,9.36706657]
[1763950405093,0.66,133.77,133.72,9.36706657]
[1763950405298,6.62706657,133.77,133.71,5.96706657]
[1763950405801,0.66,133.76,133.71,5.96706657]
[1763950407491,5.96706657,133.74,133.69,3.4]
[1763950407791,6.62706657,133.73,133.67,5.96706657]
[1763950408196,0.66,133.72,133.67,5.96706657]
[1763950408719,0.66,133.72,133.68,5.96706657]
[1763950409220,0.66,133.72,133.67,0.67]
[1763950409221,0.66,133.72,133.67,5.96706657]
[1763950409886,0.66,133.72,133.66,5.96706657]
[1763950410309,0.66,133.72,133.67,5.96706657]
[1763950410618,0.66,133.72,133.66,5.96706657]
[1763950410821,6.62706657,133.72,133.66,5.96706657]
[1763950411213,0.66,133.71,133.66,5.96706657]
[1763950412295,0.66,133.73,133.68,5.96706657]
[1763950412832,6.62706657,133.73,133.68,5.96706657]
[1763950413206,0.66,133.72,133.68,5.96706657]
[1763950413408,0.1517477,133.69,133.68,5.96706657]
[1763950414129,0.1517477,133.69,133.66,0.67]
[1763950414503,0.1517477,133.69,133.67,5.96706657]
[1763950417231,0.8117477,133.69,133.67,5.96706657]
[1763950417442,0.8117477,133.69,133.66,5.96706657]
[1763950417926,0.8117477,133.69,133.65,9.56706657]
[1763950418919,0.1517477,133.69,133.67,5.96706657]
[1763950419131,0.8117477,133.69,133.67,5.96706657]
[1763950419331,0.1517477,133.69,133.67,5.96706657]
[1763950419928,0.8117477,133.69,133.67,5.96706657]
[1763950420240,0.8117477,133.69,133.66,5.96706657]
[1763950420935,0.8117477,133.69,133.65,0.2]
[1763950421237,13.44826065,133.67,133.65,0.2]
[1763950421541,5.96706657,133.66,133.65,0.2]
[1763950421721,6.62706657,133.66,133.65,0.2]
[1763950422234,20.85172525,133.69,133.65,0.2]
[1763950422235,0.1517477,133.69,133.65,0.2]
[1763950422435,0.66,133.68,133.65,0.2]
[1763950422619,0.66,133.68,133.65,6.16706657]
[1763950422937,0.1517477,133.69,133.65,6.16706657]
[1763950423143,0.8117477,133.69,133.65,6.16706657]
[1763950423715,0.8117477,133.69,133.65,0.2]
[1763950424743,9.97899671,133.69,133.65,0.2]
[1763950425130,9.16724901,133.67,133.65,0.2]
[1763950425338,0.68,133.68,133.65,0.2]
[1763950426226,9.84724901,133.68,133.65,0.2]
[1763950426428,9.16724901,133.67,133.65,0.2]
[1763950426643,9.88724901,133.67,133.65,0.2]
[1763950426948,0.72,133.66,133.65,0.2]
[1763950427342,9.88724901,133.66,133.65,0.2]
[1763950428027,17.36891891,133.66,133.65,0.2]
[1763950428447,0.72,133.66,133.65,0.2]
[1763950430254,9.88724901,133.66,133.65,0.2]
[1763950430428,17.36891891,133.66,133.65,0.2]
[1763950430832,35.48987891,133.66,133.65,0.2]
[1763950432145,18.12096,133.63,133.62,0.2]
[1763950432352,18.12096,133.63,133.59,0.2]
[1763950432353,27.28820901,133.63,133.59,0.2]
[1763950432536,9.16724901,133.6,133.59,0.2]
[1763950432928,9.88724901,133.6,133.59,0.2]
[1763950433129,28.00820901,133.6,133.59,0.2]
[1763950433570,35.64241181,133.6,133.59,0.2]
[1763950434658,28.15738187,133.6,133.59,0.2]
[1763950435046,35.64241181,133.6,133.59,0.2]
[1763950435259,42.68095999,133.58,133.57,0.2]
[1763950435458,0.72,133.59,133.57,0.2]
[1763950435968,9.88724901,133.59,133.57,0.2]
[1763950436138,0.15521055,133.61,133.58,9.84724901]
[1763950436337,0.15521055,133.61,133.6,9.16724901]
[1763950436565,0.14552693,133.62,133.6,9.16724901]
[1763950436754,0.15738433,133.64,133.61,17.33171873]
[1763950436988,0.16412924,133.67,133.64,27.28820901]
[1763950437157,0.15467604,133.69,133.65,9.75724901]
[1763950437340,0.15467604,133.69,133.67,9.16724901]
[1763950437758,0.15467604,133.69,133.67,9.43724901]
[1763950438344,0.15467604,133.69,133.64,18.39096]
[1763950438544,0.15467604,133.69,133.66,9.16724901]
[1763950438775,0.15467604,133.69,133.65,9.16724901]
[1763950440267,0.87069126,133.68,133.63,0.27]
[1763950440447,0.87069126,133.68,133.64,9.16724901]
[1763950440771,10.03794027,133.68,133.62,12.56724901]
[1763950441069,9.16724901,133.66,133.59,9.16724901]
[1763950441371,0.72,133.67,133.62,9.16724901]
[1763950442147,0.72,133.67,133.59,0.27]
[1763950442350,9.16724901,133.66,133.6,9.16724901]
[1763950442549,9.88724901,133.67,133.61,9.16724901]
[1763950442855,9.88724901,133.67,133.57,11.35618249]
[1763950442856,0.87069126,133.68,133.64,9.16724901]
[1763950443653,0.87069126,133.68,133.63,9.16724901]
[1763950444274,0.87069126,133.68,133.61,0.27]
[1763950444485,0.87069126,133.68,133.63,9.16724901]
[1763950444880,9.16724901,133.67,133.57,21.72096]
[1763950445062,18.12096,133.64,133.58,9.16724901]
[1763950445253,9.16724901,133.64,133.58,9.16724901]
[1763950445455,0.72,133.63,133.59,9.16724901]
[1763950445650,0.72,133.67,133.61,9.16724901]
[1763950445855,0.72,133.67,133.63,9.16724901]
[1763950446054,0.72,133.67,133.64,9.16724901]
[1763950446271,0.72,133.67,133.63,9.16724901]
[1763950446671,0.15069126,133.68,133.63,9.16724901]